Cogmind - Beta 12 @@@ ROGUE MODE // 2024.01.02 @ 22:26:46 Player: Darcyisverycute Result: Destroyed by G-47 Trooper with Particle Gun Performance ------------- Evolutions (2) 1000 Regions Visited (5) 1000 Robots Destroyed (32) 160 Value Destroyed (845) 845 Prototype IDs (4) 80 Alien Tech Used (0) 0 Bonus (4) 4 TOTAL SCORE: 3089 Bonus ------- High Alert Combat Kills 4 Cogmind --------- Core Integrity 0/550 Matter 267/300 Energy 99/100 System Corruption 0% Temperature Cool (9) Movement Core (50) Location -8/Materials Parts ------- > --- POWER (1) -------- (None) > --- PROPULSION (4) --- (None) > --- UTILITY (4) ------ (None) > --- WEAPON (2) ------- (None) > --- INVENTORY (5) ---- Matter Filter Tractor Beam Enhanced Autogun Rocket Launcher Plasma Cutter Peak State ------------ > --- POWER ------------ Nuclear Core > --- PROPULSION ------- Armored Huge Wheel Armored Huge Wheel > --- UTILITY ---------- Medium Storage Unit Signal Interpreter Matter Filter Shock Absorption System > --- WEAPON ----------- Heavy Particle Gun Enhanced Autogun > --- INVENTORY -------- Armored Huge Wheel High-capacity Matter Pod Improved Terrain Scanner Transport Network Coupler Tractor Beam Light Cannon Rocket Launcher Mining Laser Plasma Cutter [Rating: 39] Favorites ----------- Power Ion Engine Engine Ion Engine Power Core Nuclear Core Propulsion Aluminum Leg Leg Aluminum Leg Wheel Armored Huge Wheel Utility Medium Storage Unit Device Shock Absorption System Storage Medium Storage Unit Processor Signal Interpreter Protection Medium Armor Plating Weapon Heavy Assault Rifle Energy Gun Beam Rifle Ballistic Gun Heavy Assault Rifle Ballistic Cannon Light Cannon Launcher Rocket Launcher Build | -11 -10 -10 -10 -9 -8 ------- Run | Jun Mat Min Exi Min Mat Slots Evolved 4 | . . . . . 4 Power . | . . . . . . Propulsion 2 | . . . . . 2 Utility 2 | . . . . . 2 Weapon . | . . . . . . Parts Attached 46 | 6 6 1 . 10 23 Power 7 | . 1 . . 1 5 Engine 3 | . 1 . . 1 1 Core 4 | . . . . . 4 Reactor . | . . . . . . Propulsion 13 | 2 1 . . 3 7 Treads . | . . . . . . Leg 7 | 2 1 . . . 4 Wheel 6 | . . . . 3 3 Hover . | . . . . . . Flight . | . . . . . . Utility 11 | 2 1 1 . 1 6 Device 3 | . . . . . 3 Storage 5 | 2 1 . . 1 1 Processor 1 | . . . . . 1 Hackware . | . . . . . . Protection 2 | . . 1 . . 1 Artifact . | . . . . . . Weapon 15 | 2 3 . . 5 5 Energy Gun 2 | . 1 . . . 1 Energy Cannon . | . . . . . . Ballistic Gun 11 | 2 2 . . 3 4 Ballistic Cannon 1 | . . . . 1 . Launcher 1 | . . . . 1 . Special Weapon . | . . . . . . Impact Weapon . | . . . . . . Slashing Weapon . | . . . . . . Piercing Weapon . | . . . . . . Special Melee Weapon . | . . . . . . Unidentified Prototypes 2 | . . . . . 2 Parts Lost 18 | . . . . 4 14 Power 4 | . . . . 1 3 Propulsion 6 | . . . . 1 5 Utility 4 | . . . . 1 3 Weapon 4 | . . . . 1 3 Highest Loss Streak 5 | . . . . 4 5 To Critical Strikes 1 | . . . . . 1 Average Slot Usage (%) 85 | . 82 93 100 84 71 Engine 8 | . 2 14 14 12 2 Core 2 | . . . . . 6 Leg 17 | . 28 28 28 12 4 Wheel 6 | . . . . 14 13 Device 3 | . . . . . 8 Storage 13 | . 23 14 14 14 9 Processor 2 | . . . . . 8 Protection 6 | . . 8 14 3 1 Energy Gun 7 | . 13 14 14 1 . Ballistic Gun 14 | . 14 14 14 17 15 Ballistic Cannon 1 | . . . . 8 1 Naked Turns 3 | . . . . . 3 Heaviest Build 36 | 13 21 28 28 28 36 Greatest Support 56 | 20 20 20 20 20 56 Greatest Overweight (x) 6 | . 1 1 1 1 6 Average Overweight (x) . | . . 1 1 . . Largest Inventory Capacity 10 | 8 10 10 10 10 10 Average Capacity 9 | 7 8 10 10 10 9 Most Carried 10 | 5 10 10 10 10 10 Average Carried 9 | 2 8 9 10 9 9 Final Capacity 10 | 8 10 10 10 10 5 Final Carried 10 | 5 10 10 10 9 5 Class Distribution -------------------- 90% | Mutant 9% | Scavenger-Mutant Dominant Class ---------------- Mutant | -10/Materials Mutant | -10/Mines Mutant | -10/Exiles Mutant | -9/Mines Mutant | -8/Materials Resources | -11 -10 -10 -10 -9 -8 ----------- Run | Jun Mat Min Exi Min Mat Matter Collected 1575 | 276 39 61 . 409 790 Remotely . | . . . . . . Salvage Created 1293 | 70 135 48 . 124 916 Parts 71 | 6 5 4 . 4 52 Haulers Intercepted 3 | . 1 . . . 2 Recyclers Shooed 2 | 1 . . . . 1 Parts Field Recycled . | . . . . . . Retrieved Matter . | . . . . . . Parts Self-Destructed . | . . . . . . Prevented . | . . . . . . Kills | -11 -10 -10 -10 -9 -8 ------- Run | Jun Mat Min Exi Min Mat Combat Hostiles Destroyed 36 | . 2 3 . 12 19 Guns 29 | . 2 3 . 6 18 Cannons 5 | . . . . 4 1 AOE 2 | . . . . 2 . Classes Destroyed 10 | 2 2 1 . 1 4 Worker 1 | . . . . . 1 Tunneler 2 | 1 . . . 1 . Hauler 3 | . 1 . . . 2 Recycler 1 | 1 . . . . . Watcher 1 | . . . . . 1 Swarmer 9 | . . 3 . . 6 Grunt 9 | . 2 . . . 7 Sentry 5 | . . . . . 5 Hunter 1 | . . . . . 1 Assembled 12 | . . . . 12 . Best Kill Streak 5 | 2 2 3 . 4 5 Combat Bots Only 5 | . 2 3 . 4 5 Max Kills in Single Turn 2 | 1 1 2 . 1 1 Gunslinging 1 | . . 1 . . . Exploded 1 | . . . . 1 . Melee . | . . . . . . Uniques/NPCs Destroyed . | . . . . . . Combat | -11 -10 -10 -10 -9 -8 -------- Run | Jun Mat Min Exi Min Mat Damage Taken 3582 | . 122 66 . 822 2572 Core 735 | . 22 17 . 138 558 Absorbed by Shields 224 | . . . . . 224 Core Remaining (%) 64 | 100 . . . 29 . Volleys Fired 151 | 4 8 2 . 32 105 Largest 2 | 2 2 2 . 2 2 Hottest 79 | 40 79 79 . 79 58 Shots Fired 295 | 8 16 4 . 63 204 Gun 273 | 8 16 4 . 49 196 Cannon 18 | . . . . 10 8 Launcher 4 | . . . . 4 . Special . | . . . . . . Kinetic 274 | 8 8 2 . 52 204 Thermal 17 | . 8 2 . 7 . Explosive 4 | . . . . 4 . Electromagnetic . | . . . . . . Robot Hit Streak 13 | 2 4 4 . 8 13 Robot Miss Streak 10 | 1 1 . . 4 10 Penetration Max . | . . . . . . Secondary Targets 4 | . . 1 . . 3 Max Gunslinging Chain 1 | . . 1 . . 1 Shots Hit Robots 178 | 4 11 3 . 39 121 Core Hits 75 | 3 6 3 . 24 39 Critical Kills 1 | . . . . . 1 Critical Parts Destroyed . | . . . . . . Critical Strikes 1 | . . . . . 1 Destroy 1 | . . . . . 1 Melee Attacks . | . . . . . . Impact . | . . . . . . Slashing . | . . . . . . Piercing . | . . . . . . Sneak Attacks . | . . . . . . Combat Hostiles . | . . . . . . Follow-up Attacks . | . . . . . . Damage Inflicted 2963 | 41 161 45 . 737 1979 Guns 2559 | 41 161 45 . 444 1868 Cannons 187 | . . . . 83 104 Explosions 210 | . . . . 210 . Melee . | . . . . . . Ramming 7 | . . . . . 7 Kinetic 2633 | 41 105 17 . 498 1972 Thermal 113 | . 56 28 . 29 . Explosive 210 | . . . . 210 . Electromagnetic . | . . . . . . Impact . | . . . . . . Slashing . | . . . . . . Piercing . | . . . . . . Highest Corruption 5 | . . . . 5 . Average Corruption 5 | . . . . 5 . Corruption Purged . | . . . . . . Corruption Blocked . | . . . . . . Effects 12 | . . . . 12 . Message Errors 3 | . . . . 3 . Matter Fused 4 | . . . . 4 . Heat Flow Errors 2 | . . . . 2 . Data Loss (minor) 1 | . . . . 1 . Data Loss (major) 1 | . . . . 1 . Weapon Failures 1 | . . . . 1 . Overload Shots . | . . . . . . Overflow Damage . | . . . . . . Projectiles . | . . . . . . Explosions . | . . . . . . Melee . | . . . . . . Knockbacks 1 | . . . . 1 . Impact . | . . . . . . Kinetic 1 | . . . . 1 . Secondary . | . . . . . . Self-Inflicted Damage 70 | . . . . 70 . Shots 2 | . . . . 2 . Rammed . | . . . . . . Targets Rammed 3 | . . . . . 3 Kicked 3 | . . . . . 3 Crushed . | . . . . . . Highest Temperature 296 | . 75 36 . 270 296 Average Temperature 88 | . 39 20 . 94 94 Received Heat Transfer 1110 | . 60 . . 80 970 Effects 2 | . . . . . 2 Energy Bleed 2 | . . . . . 2 Siege Activations . | . . . . . . Robots Corrupted . | . . . . . . Combat Hostiles . | . . . . . . Parts Fried . | . . . . . . Impact Corruptions . | . . . . . . Robots Melted . | . . . . . . Combat Hostiles . | . . . . . . Parts Melted . | . . . . . . Heat Transferred 296 | . 148 74 . 74 . Parts Sabotaged . | . . . . . . Parts Stolen . | . . . . . . Parts Stripped . | . . . . . . Power Chain Reactions . | . . . . . . Missiles Intercepted . | . . . . . . Alert | -11 -10 -10 -10 -9 -8 ------- Run | Jun Mat Min Exi Min Mat Peak Influence 510 | 10 63 94 . 19 510 Initial 24 | . 6 24 . . 7 Average 108 | 6 30 64 . 13 198 Maximum Alert Level 2 | . . . . . 2 Low Security (%) 77 | 100 100 100 . 100 50 Level 1 16 | . . . . . 36 Level 2 5 | . . . . . 12 Level 3 . | . . . . . . Level 4 . | . . . . . . Level 5 . | . . . . . . High Security . | . . . . . . Max Security . | . . . . . . Squads Dispatched 5 | . . . . . 5 Investigation 1 | . . . . . 1 Extermination . | . . . . . . Reinforcement 4 | . . . . . 4 Assault . | . . . . . . Garrison . | . . . . . . Intercept . | . . . . . . Searches Triggered . | . . . . . . Construction Impeded 1 | . . . . . 1 Haulers Reinforced . | . . . . . . Active Scanning Responses . | . . . . . . Cargo Convoy Interrupts . | . . . . . . Stealth | -11 -10 -10 -10 -9 -8 --------- Run | Jun Mat Min Exi Min Mat Distress Signals 5 | . 1 . . . 4 Communications Jammed . | . . . . . . Distress Signals . | . . . . . . Times Spotted 78 | . 6 3 . 21 48 Peak Tracking Total 14 | . 5 3 . 5 14 Tactical Retreats 6 | . . . . 1 5 Traps | -11 -10 -10 -10 -9 -8 ------- Run | Jun Mat Min Exi Min Mat Traps Triggered . | . . . . . . Indirectly . | . . . . . . Trap Hack Attempts . | . . . . . . Triggered . | . . . . . . Disarmed . | . . . . . . Reprogrammed . | . . . . . . Reused . | . . . . . . Traps Extracted . | . . . . . . Installed 1 | . . . . 1 . Triggered . | . . . . . . Most Traps Carried 1 | . . 1 1 1 . Machines | -11 -10 -10 -10 -9 -8 ---------- Run | Jun Mat Min Exi Min Mat Machines Disabled 1 | . . . . . 1 Max in Single Turn 1 | . . . . . 1 Garrison Access 1 | . . . . . 1 Machines Repaired . | . . . . . . Machines Sabotaged . | . . . . . . Overloaded Fab Kills . | . . . . . . Hacking | -11 -10 -10 -10 -9 -8 --------- Run | Jun Mat Min Exi Min Mat Machines Accessed 8 | . 1 . 4 . 3 Terminals 2 | . 1 . . . 1 Fabricators . | . . . . . . Repair Stations . | . . . . . . Recycling Units 1 | . . . . . 1 Scanalyzers . | . . . . . . Garrison Access 1 | . . . . . 1 Total Hacks 15 | . 2 . 4 . 9 Successful 10 | . . . 4 . 6 Failed 5 | . 2 . . . 3 Catastrophic 1 | . . . . . 1 Database Lockouts . | . . . . . . Manual 3 | . . . . . 3 Terminals 7 | . 2 . . . 5 Fabricators . | . . . . . . Repair Stations . | . . . . . . Recycling Units 3 | . . . . . 3 Scanalyzers . | . . . . . . Garrison Access 1 | . . . . . 1 Terminal Hacks 6 | . . . 4 . 2 Record 4 | . . . 4 . . Prototype ID Bank 1 | . . . . . 1 Branch Access Points 1 | . . . . . 1 Fabricator Hacks . | . . . . . . Repair Station Hacks . | . . . . . . Recycling Unit Hacks 3 | . . . . . 3 Process 1 | . . . . . 1 Report Inventory 1 | . . . . . 1 Retrieve Matter 1 | . . . . . 1 Scanalyzer . | . . . . . . Garrison Access Hacks 1 | . . . . . 1 Seal Access 1 | . . . . . 1 Unauthorized Hacks . | . . . . . . Terminals . | . . . . . . Fabricators . | . . . . . . Repair Stations . | . . . . . . Recycling Units . | . . . . . . Scanalyzers . | . . . . . . Garrison Access . | . . . . . . Data Cores Recovered . | . . . . . . Used . | . . . . . . Hacking Detections 2 | . 1 . . . 1 Full Trace Events 1 | . . . . . 1 Feedback Events . | . . . . . . Feedback Blocked . | . . . . . . Robot Schematics Acquired . | . . . . . . Robots Built . | . . . . . . Authchips . | . . . . . . Time . | . . . . . . Total Robot Build Rating . | . . . . . . Part Schematics Acquired . | . . . . . . Parts Built . | . . . . . . Authchips . | . . . . . . Time . | . . . . . . Total Part Build Rating . | . . . . . . Parts Repaired . | . . . . . . Time . | . . . . . . Parts Recycled . | . . . . . . Recycled Matter 265 | . . . . . 265 Retrieved Matter 265 | . . . . . 265 Retrieved Components . | . . . . . . Parts Scanalyzed . | . . . . . . Part Schematics Acquired . | . . . . . . Parts Damaged . | . . . . . . Bothacking | -11 -10 -10 -10 -9 -8 ------------ Run | Jun Mat Min Exi Min Mat Used RIF Installer . | . . . . . . Robots Hacked . | . . . . . . Non-combat . | . . . . . . Combat . | . . . . . . Robot Hacks Applied . | . . . . . . Relay Couplers Released . | . . . . . . Fabnet Peak Effective % . | . . . . . . Robots Rewired . | . . . . . . Allies Hacked . | . . . . . . Hacks Repelled . | . . . . . . Allies | -11 -10 -10 -10 -9 -8 -------- Run | Jun Mat Min Exi Min Mat Total Allies 1 | . . 1 . . . Largest Group 1 | . . 1 1 . . Highest-Rated Group 31 | . . 31 31 . . Highest-Rated Ally 31 | . . 31 31 . . Total Orders . | . . . . . . Ally Attacks . | . . . . . . Total Damage . | . . . . . . Kills . | . . . . . . Allies Corrupted . | . . . . . . Allies Melted . | . . . . . . Intel | -11 -10 -10 -10 -9 -8 ------- Run | Jun Mat Min Exi Min Mat Robot Analysis Total . | . . . . . . Derelict Logs Recovered 1 | . . . . 1 . Drone Launches . | . . . . . . Drone Recoveries . | . . . . . . Exploration | -11 -10 -10 -10 -9 -8 ------------- Run | Jun Mat Min Exi Min Mat Turns Passed 2684 | 120 205 404 719 357 879 Spaces Moved 1458 | 82 115 202 378 231 450 Core 14 | 4 . . . . 10 Treads . | . . . . . . Legs 897 | 78 115 202 378 27 97 Wheels 547 | . . . . 204 343 Hover . | . . . . . . Flight . | . . . . . . Fastest Speed 50 | 50 120 190 190 80 50 Average Speed 142 | 116 130 190 190 95 113 Slowest Speed 350 | 120 190 190 190 190 350 Overloaded Moves . | . . . . . . Propulsion Burnouts . | . . . . . . Robots Hopped . | . . . . . . Cave-ins Triggered . | . . . . . . Exploration Rate (%) 44 | 5 27 58 79 63 37 Regions Visited 5 Branch Regions 3 Pre-discovered Areas . | . . . . . . Known Exits Taken . | . . . . . . Unknown Exits Taken 5 | 1 1 1 1 1 . Scrap Searched 2 | . . 1 . 1 . Spaces Dug . | . . . . . . Terrain Destroyed 24 | . . . . 24 . Melee . | . . . . . . Projectile . | . . . . . . AOE 24 | . . . . 24 . Terrain Rammed . | . . . . . . Walls Destroyed . | . . . . . . Machines Disabled . | . . . . . . Actions | -11 -10 -10 -10 -9 -8 --------- Run | Jun Mat Min Exi Min Mat Total 1832 | 96 157 220 380 303 676 Wait 109 | . 16 8 1 18 66 Move 1453 | 81 114 201 377 230 450 Hop . | . . . . . . Pick Up 29 | 5 4 4 1 3 12 Fast Attach 29 | 6 5 1 . 5 12 Attach 7 | . . . . 1 6 Detach 8 | . 4 . . 2 2 Swap 10 | . 1 . . 4 5 Drop 32 | . 5 4 1 7 15 Fire 151 | 4 8 2 . 32 105 Melee . | . . . . . . Ram . | . . . . . . Kick 3 | . . . . . 3 Crush . | . . . . . . Escape Stasis . | . . . . . . Rewire . | . . . . . . Trap 1 | . . . . 1 . Miscellaneous . | . . . . . . Route ------- -11/Junkyard -10/Materials -10/Mines -10/Exiles (discovered 2 exits: [*Min x2]) -9/Mines -8/Materials (discovered 1 exit: *Fac) History --------- Turn | Location | Event 77 | -11/Junkyard | Discovered new exit (range 15) 121 | -11/Junkyard | Entered Materials 304 | -10/Materials | Discovered new exit (range 13) 319 | -10/Materials | Build established: Mutant 326 | -10/Materials | Entered Mines 364 | -10/Mines | Received a Rocket Launcher from a helpful Derelict 599 | -10/Mines | Received a Mining Laser from a helpful Derelict 706 | -10/Mines | Found a hidden stash of uninstalled traps 722 | -10/Mines | Deemed a non-threat by the Exiles lab entrance 722 | -10/Mines | Discovered new exit (range 5) 730 | -10/Mines | Entered Exiles 730 | -10/Exiles | Found Exiles lab abandoned 730 | -10/Exiles | Accompanied by 1 ally 759 | -10/Exiles | Discovered new exit (range 15) 1428 | -10/Exiles | Discovered new exit (range 12) 1449 | -10/Exiles | Entered Mines 1450 | -9/Mines | Assembled infested the area 1536 | -9/Mines | Core integrity fell below 50% 1560 | -9/Mines | Lost 4 parts (1p1n1u1w) 1744 | -9/Mines | Learned Materials emergency access door positions 1775 | -9/Mines | Discovered new exit (range 8) 1806 | -9/Mines | Entered Materials 1806 | -8/Materials | Evolved 4 slots: Propulsion x2, Utility x2 2098 | -8/Materials | Discovered new exit (range 14) 2111 | -8/Materials | Identified exit to Factory 2448 | -8/Materials | Core integrity fell below 50% 2474 | -8/Materials | Lost 5 parts (1n2u2w) 2682 | -8/Materials | Core integrity fell below 20% 2682 | -8/Materials | Released all parts (2) 2685 | -8/Materials | Destroyed by G-47 Trooper with Particle Gun Last Messages --------------- >>Access(Branch) No branch access points found. 02642_ ALERT: Suspicious activity at Terminal M007. Dispatching Investigation squad. 02648_ Kicked G-47 Trooper. 02649_ Kicked G-47 Trooper out of the way. 02652_ K-01 Serf cleans the Terminal. 02664_ U-05 Engineer destroyed. 02665_ Critical hit (Burn: +37). 02665_ K-01 Serf collects debris. 02667_ Aluminum Leg destroyed. 02674_ Hvy. Assault Rifle destroyed. 02676_ K-01 Serf collects debris. 02678_ Acquired 53 matter. 02679_ Critical hit (Burn: +37). 02679_ Aluminum Leg destroyed. 02680_ K-01 Serf collects debris. 02680_ Lgt. Nuclear Core destroyed. 02682_ Released Med. Storage Unit. 02682_ Released Signal Interpreter. Map ----- +----------------------------------------------------+ | ???# #???????????????????????????????????? | | ???# T #???????????????????????????????????? | | ???# #???????????????????????????????????? | | ???# """ """ #???????????????????????????????????? | | ???# """ """ #???????????????????????????????????? | | ???# "" """ #???????????????????????????????????? | | ???# #?????????????#?????????????????????? | | ??# #???????????? #?????????????????????? | | ######+######??###+###?? #?????????????????????? | | ####### ###"### #??????##????????? | | #????## ###??????? | | "" = #???? #??????? | | T" !%! #???? #??????? | | ^"" ####### ###+###????? """ #??????? | | ######### ##??????????# "" ! #?""" ?? | | # """ # #???????????# #?"""??? | | """ # T" # #???????????# """ #?""???? | | """ + #g #???????????# """ # ???? | | """ # # g #???????????? """ # ????? | | ##+######% #?????????????? ?# ????? | | ## #???##%!g##????????????###+###"###??# | | ########## #???#==%lg############## #"##### | | ?????????# #???# [[a% g= % % | | ??????????# #???# * % % % | | ??????????# #???# =! = ! % % % | | ??????????# #???# *%###@########## ###+### | | ??????????# #???####### #?????######## "#? | | ??????????# #?????????# #????????????#!/ ##? | | ??????????# #?????????# !!! #????????????#//% #?? | | ??????????# #?????????# !! #????????????#/ #?? | | ??????????# #?????????# !! = #????????????# #?? | | ??????????# #?????????# =[ #????????????# #?? | | ????#+##### ####?????###+#####????????????# #?? | | ?# #?????# % #?????????????# #?? | | ????####### ## #?????# """ #?????????????###+##?? | | ??????????# ##*#######[ """ #???????????????# #??? | | ??????????# ## [= +* """ #???????????????# #??? | | ??????????# ## % %#### #???????????????# #??? | | ??????????# ## #??# ] #???????????????# #??? | | ??????????# ## #??########????########???# #??? | | ??????????# ## #??????????????#/ ##### #??? | | ??????????# ## #??????????????# "" + [#??? | | ??????????# ## #??????????????#= %Y" #######??? | | ??????????# ## #??????????????# "" #????????? | | ??????????# ## #??????????????# #????????? | | ??????????# ## #??????????????# #????????? | | ??????????# ## #??????????????####+###????????? | | ??????????# ## #???????????????# #????????? | | ??????????# ## #???????????????# #????????? | | ??????????# ## #???##########??# #????????? | +----------------------------------------------------+ Best States ------------- Heat Dissipation 31 Energy Generation 14 Energy Capacity 250 Matter Stores 300 Matter Capacity 300 Sight Range 16 Terrain Scan Density 10 Armor Coverage 225 Evasion (%) 55 Matter Filtering 30 Item Schematics ----------------- None Robot Schematics ------------------ None Fabricated ------------ Nothing Alien Tech Used ----------------- None Achievements -------------- None Challenges ------------ None Game ------ Seed PropulsionBombProjector Manual? 0 Play Time 00:33:15 Cumulative 44.5 hours Start 2024.01.02 @ 01:19:32 End 2024.01.02 @ 22:26:46 Sessions 2 Manual Loads 0 Difficulty Rogue Special Mode None Game No. 12 Rogue 4 Adventurer 8 Explorer 0 Win Type - Total 1 Types 1/0/0/0/0/0/0/0/0 Lore% 29 Gallery% 38 Achievement% 33 Wizard Run 0 Options --------- ASCII 0 Keyboard 1 Movement Numpad Keybinds 0 Fullscreen 2 Font 18/TerminusBold Map View 76x50 Tactical HUD 1 Map Filters NONE Filters NONE Steam 0 RUN: aa74af08-cdd5-42b2-935d-dd1d9b1f4db7